bitfinex-derivatives/quotes_ETHF0:USTF0_20251107
["timestamp","ask_amount","ask_price","bid_price","bid_amount"]
[1762523788848,0.50012,3241.4,3241.2,0.2364]
[1762523789064,3.21111543,3241.7,3241.2,0.2364]
[1762523789353,3.21111543,3241.7,3241.1,0.00655339]
[1762523789354,3.2078,3241.3,3241.1,0.00655339]
[1762523789653,0.50015,3241.2,3241.1,0.00655339]
[1762523789852,0.75655,3241.2,3241.1,0.00655339]
[1762523794355,0.50015,3241.2,3241.1,0.00655339]
[1762523794755,0.75655,3241.2,3241.1,0.00655339]
[1762523795349,3.2078,3241.3,3241.2,0.2523]
[1762523795547,3.70794,3241.3,3241.2,0.2523]
[1762523795746,3.70794,3241.3,3241.1,0.00655339]
[1762523795747,0.50015,3241.2,3241.1,0.00655339]
[1762523796457,3.70794,3241.3,3241.1,0.00655339]
[1762523796862,3.2078,3241.3,3241.2,0.2523]
[1762523797156,0.50012,3241.4,3241.2,0.2523]
[1762523797557,3.21111543,3241.7,3241.2,0.2523]
[1762523797758,3.21111543,3241.7,3241.5,0.1525]
[1762523797953,3.21111543,3241.7,3241.6,0.2523]
[1762523798259,0.50009,3241.6,3241.5,0.1525]
[1762523798960,0.50009,3241.6,3241.1,0.00655339]
[1762523798961,0.50015,3241.2,3241.1,0.00655339]
[1762523799550,0.50016,3241.2,3241.1,0.00655339]
[1762523800061,0.75656,3241.2,3241.1,0.00655339]
[1762523800258,0.50016,3241.2,3241.1,0.24265339]
[1762523801053,0.50016,3241.2,3241.1,0.00655339]
[1762523801260,0.73906,3241.2,3241.1,0.00655339]
[1762523802956,0.50016,3241.2,3241.1,0.00655339]
[1762523803758,3.70794,3241.3,3241.2,0.2361]
[1762523803961,3.21111543,3241.7,3241.1,0.00655339]
[1762523804466,0.50009,3241.6,3241.5,0.1539]
[1762523804767,0.00331543,3241.7,3241.1,1.11090362]
[1762523804971,0.00331543,3241.7,3241.5,0.1539]
[1762523805266,0.00331543,3241.7,3241.6,0.2361]
[1762523806167,0.50009,3241.6,3241.5,0.1539]
[1762523806468,0.5001,3241.5,3241.4,1.10435023]
[1762523806766,0.50012,3241.4,3241.2,1.10435023]
[1762523808166,0.50013,3241.3,3241.2,1.10435023]
[1762523808667,0.50011,3241.4,3241.2,1.10435023]
[1762523809365,0.73901,3241.4,3241.3,1.10435023]
[1762523811968,0.73901,3241.4,3241.1,1.64388083]
[1762523811969,3.94681,3241.4,3241.2,1.10435023]
[1762523812270,0.73905,3241.2,3241.1,0.00655339]
[1762523818870,0.50015,3241.2,3241.1,0.24425339]
[1762523819069,0.74025,3241.2,3241.1,0.00655339]
[1762523819876,0.50015,3241.2,3241.1,0.00655339]
[1762523821465,3.2078,3241.4,3241.3,0.2377]
[1762523821670,0.00331543,3241.7,3241.5,0.3865]
[1762523821871,0.50008,3241.6,3241.5,0.3865]
[1762523823079,0.50013,3241.3,3241.2,1.10435023]
[1762523823278,0.50015,3241.2,3241.1,1.11090362]
[1762523823580,0.74025,3241.2,3241.1,1.11090362]
[1762523823878,0.74025,3241.2,3241.1,0.00655339]
[1762523824780,0.74031,3240.8,3240.7,1.10435023]
[1762523824983,0.74037,3240.4,3240.3,1.10435023]
[1762523825274,0.74038,3240.3,3240.2,1.10435023]
[1762523825874,0.74038,3240.3,3240.2,1.10696574]
[1762523826783,0.2401,3240.3,3240.2,1.10696574]
[1762523827277,0.2401,3240.3,3240.2,0.00261551]
[1762523827472,0.74038,3240.3,3240.2,0.00261551]
[1762523828881,0.2401,3240.3,3240.2,0.00261551]
[1762523829481,0.74038,3240.3,3240.2,0.00261551]
[1762523833687,8.74038,3240.3,3240.2,0.00261551]
[1762523833885,0.7405,3239.6,3239.5,1.25315023]
[1762523834290,0.7405,3239.6,3239.5,0.1488]
[1762523834592,0.7405,3239.6,3239.5,1.25315023]
[1762523834889,0.2401,3239.6,3239.5,0.15142898]
[1762523835384,0.7405,3239.6,3239.5,0.15142898]
[1762523836185,0.7405,3239.6,3239.5,0.00262898]
[1762523837280,0.7405,3239.6,3238.9,1.63732744]
[1762523837281,0.50052,3238.8,3238.7,1.10435023]
[1762523837685,0.74062,3238.8,3238.7,1.10435023]
[1762523838380,0.74285516,3238.8,3238.7,0.00224851]
[1762523839790,0.74285516,3238.8,3238.0,1.78612744]
[1762523839791,0.74071,3238.2,3238.1,1.10435023]
[1762523840089,0.74073,3238.1,3238.0,1.25315023]
[1762523840293,0.74073,3238.1,3238.0,0.1488]
[1762523840794,0.74073,3238.1,3237.6,1.10435023]
[1762523840795,3.2078,3238.1,3237.6,1.10435023]
[1762523840993,0.50068,3237.8,3237.6,1.1074286]
[1762523841589,0.50068,3237.8,3237.6,0.00307837]
[1762523841987,3.2078,3238.1,3237.6,0.00307837]
[1762523842390,0.50068,3237.8,3237.6,0.00307837]
[1762523842690,3.2078,3238.1,3237.6,0.00307837]
[1762523842890,0.50069,3237.8,3237.6,0.00307837]
[1762523843092,0.50068,3237.8,3237.6,0.00307837]
[1762523843293,3.2078,3238.1,3237.6,0.00307837]
[1762523843586,0.50069,3237.7,3237.6,0.00307837]
[1762523844096,0.50069,3237.7,3237.6,0.24077837]
[1762523844297,0.50067,3237.8,3237.7,0.2377]
[1762523844591,3.21242784,3238.5,3238.0,0.3865]
[1762523844791,0.00462784,3238.5,3238.4,0.2377]
[1762523844990,0.00462784,3238.5,3238.4,0.73828]
[1762523845184,0.00462784,3238.5,3238.4,8.73828]
[1762523845490,3.616,3239.9,3239.5,0.1488]
[1762523845491,0.50039,3239.6,3239.5,0.1488]
[1762523846092,3.2078,3239.9,3239.3,3.2078]
[1762523846093,0.50042,3239.4,3239.3,3.2078]
[1762523846293,0.00265086,3239.4,3239.3,3.2078]
[1762523846696,0.50046,3239.2,3239.0,0.1488]
[1762523846997,0.00265086,3239.4,3239.3,0.2377]
[1762523847292,0.00265086,3239.4,3239.0,0.1488]
[1762523847496,0.50046,3239.2,3239.0,0.1488]
[1762523848300,0.00265086,3239.4,3239.0,0.1488]
[1762523848497,0.50047,3239.1,3239.0,0.1488]
[1762523848699,0.50047,3239.1,3239.0,0.3865]
[1762523849496,0.00265086,3239.4,3238.8,3.2078]
[1762523849696,0.00265086,3239.4,3239.0,0.3911]
[1762523850296,0.50045,3239.3,3239.0,0.3911]
[1762523850493,0.50046,3239.2,3239.0,0.3911]
[1762523851296,0.50047,3239.1,3239.0,0.3911]
[1762523851697,0.50046,3239.2,3239.0,0.3911]
[1762523852002,0.50046,3239.2,3239.1,0.2412]
[1762523852302,0.50309086,3239.4,3239.3,0.2412]
[1762523852497,0.00265086,3239.4,3239.3,3.94944]
[1762523852802,0.50044,3239.3,3239.2,0.2412]
[1762523852995,0.00265086,3239.4,3239.3,0.2412]
[1762523854104,0.50308086,3239.4,3239.3,0.2412]
[1762523855508,0.50308086,3239.4,3239.3,3.449]
[1762523856296,0.00265086,3239.4,3239.3,3.94944]
[1762523856896,0.50308086,3239.4,3239.3,3.449]
[1762523857094,0.00265086,3239.4,3239.3,3.94944]
[1762523857697,0.50308086,3239.4,3239.3,3.94944]
[1762523857906,0.50308086,3239.4,3239.3,3.449]
[1762523858506,0.50308086,3239.4,3239.3,0.2412]
[1762523858695,0.50049,3239.0,3238.9,1.10435023]
[1762523859002,0.00265086,3239.4,3239.1,0.2412]
[1762523859003,0.50047,3239.2,3239.1,0.2412]
[1762523859402,0.00265086,3239.4,3239.3,0.2412]
[1762523859800,0.50309086,3239.4,3239.3,0.2412]
[1762523860202,0.00265086,3239.4,3239.3,0.74164]
[1762523860397,0.00265086,3239.4,3239.3,8.74164]
[1762523861299,0.00265086,3239.4,3239.3,9.84599023]
[1762523861499,0.00265086,3239.4,3239.3,9.34555023]
[1762523861702,0.00265086,3239.4,3239.3,9.84599023]
[1762523862198,0.00265086,3239.4,3239.3,9.34555023]
[1762523862404,0.50308086,3239.4,3239.3,0.2412]
[1762523862608,0.00265086,3239.4,3239.3,0.2412]
[1762523862906,0.50308086,3239.4,3239.3,1.84599023]
[1762523863104,0.00265086,3239.4,3239.3,1.84599023]
[1762523864103,0.50308086,3239.4,3239.3,1.34555023]
[1762523865001,0.50308086,3239.4,3239.3,0.2412]
[1762523865807,0.00265086,3239.4,3239.3,0.74164]
[1762523866006,0.50308086,3239.4,3239.3,0.2412]
[1762523867716,0.50044,3239.3,3239.2,5.06931023]
[1762523868114,0.50044,3239.3,3239.2,4.56885023]
[1762523868511,0.00265086,3239.4,3239.3,0.75714]
[1762523868715,0.00265086,3239.4,3239.3,1.86149023]
[1762523869809,0.00462784,3239.7,3239.3,1.89402744]
[1762523870016,0.50037,3239.8,3239.7,0.2567]
[1762523870311,0.50033,3240.0,3239.9,0.2567]
[1762523870915,0.50315271,3240.0,3239.9,0.26022378]
[1762523871516,0.50315271,3240.0,3239.9,0.00352378]
[1762523871717,0.75445271,3240.0,3239.9,0.00352378]
[1762523872515,0.50315271,3240.0,3239.9,0.26022378]
[1762523873914,0.75445271,3240.0,3239.9,0.00352378]
[1762523874416,0.75445271,3240.0,3239.9,1.10453121]
[1762523874617,0.75445271,3240.0,3239.9,0.00352378]
[1762523875521,0.75445271,3240.0,3239.9,1.10453121]
[1762523876022,0.83645271,3240.0,3239.9,0.00352378]
[1762523877224,0.75445271,3240.0,3239.9,0.00352378]
[1762523879023,3.96225271,3240.0,3239.9,0.00352378]
[1762523879725,0.73991,3239.5,3239.4,1.10100743]
[1762523879925,0.73993,3239.4,3239.3,1.10100743]
[1762523880828,0.73993,3239.4,3239.3,1.1039361]
[1762523881021,0.50038,3239.7,3239.6,0.2458]
[1762523881323,0.50039,3239.6,3239.5,1.24463134]
[1762523881625,0.73991,3239.5,3239.4,1.10453134]
[1762523882525,0.73993,3239.4,3239.3,1.64025611]
[1762523882921,0.73993,3239.4,3239.3,0.00292867]
[1762523884425,1.43234574,3239.4,3239.3,0.00292867]
[1762523885324,1.43234574,3239.4,3239.3,2.867e-05]
[1762523887131,0.73993,3239.4,3239.3,2.867e-05]
[1762523887530,9.43167234,3239.4,3239.3,2.867e-05]
[1762523888925,0.50058,3238.4,3238.3,3.2078]
[1762523889125,3.2078,3238.8,3238.3,3.2078]
[1762523889329,0.50056,3238.5,3238.4,0.2458]
[1762523889537,0.50055,3238.6,3238.5,0.1401]
[1762523889834,3.2078,3238.8,3238.7,0.2458]
[1762523890034,3.2078,3238.8,3238.7,0.74633]
[1762523890635,0.00462784,3238.9,3238.8,0.74632]
[1762523891031,0.50052,3238.8,3238.5,1.78129981]
[1762523891239,0.50512784,3238.9,3238.8,0.2458]
[1762523891931,0.50055,3238.6,3238.5,0.38977237]
[1762523892926,0.00462784,3238.9,3238.8,0.2458]
[1762523893239,0.00462784,3238.9,3238.5,0.38977237]
[1762523893426,0.50054,3238.7,3238.6,0.2458]
[1762523894636,0.50513784,3238.9,3238.7,0.50053]
[1762523894834,0.50513784,3238.9,3238.8,0.2458]
[1762523895137,0.50513784,3238.9,3238.5,0.64453237]
[1762523895138,0.50055,3238.6,3238.5,0.38977237]
[1762523895637,0.00462784,3238.9,3238.8,0.2458]
[1762523895836,0.50512784,3238.9,3238.8,0.2458]
[1762523896035,0.50055,3238.6,3238.5,0.14397237]
[1762523896233,0.50055,3238.6,3238.5,0.38977237]
[1762523897035,0.50055,3238.6,3238.5,0.14397237]
[1762523897536,0.00462784,3238.9,3238.5,0.38977237]
[1762523897732,0.00462784,3238.9,3238.6,0.2458]
[1762523897933,0.50053,3238.7,3238.6,0.2458]
[1762523898634,0.00462784,3238.9,3238.8,0.74631]
[1762523898831,0.00462784,3238.9,3238.8,3.95411]
[1762523899034,2.784e-05,3238.9,3238.8,3.95411]
[1762523899233,0.50039,3239.6,3239.5,0.3859]
[1762523900738,3.2078,3239.8,3239.7,0.2458]
[1762523901632,0.50036,3239.8,3239.7,0.2458]
[1762523901834,0.00462784,3239.9,3239.8,0.2458]
[1762523902131,0.50496784,3239.9,3239.8,0.2458]
[1762523902733,0.50036,3239.8,3239.5,0.1401]
[1762523902938,0.73989,3239.6,3239.5,0.1401]
[1762523903444,0.73994,3239.3,3239.2,0.00462784]
[1762523907044,0.2395,3239.3,3239.2,0.00462784]
[1762523907831,0.73993,3239.3,3239.2,0.00462784]
[1762523908038,0.50043,3239.3,3239.2,0.00462784]
[1762523908239,0.73993,3239.3,3239.2,0.00462784]
[1762523908639,0.2395,3239.3,3239.2,0.00462784]
[1762523908838,0.00462784,3239.9,3239.5,0.1401]
[1762523909238,0.50039,3239.6,3239.5,0.3781]
[1762523909545,0.50039,3239.6,3239.5,0.1401]
[1762523909744,0.50039,3239.6,3239.5,0.3781]
[1762523910645,0.00462784,3239.9,3239.8,0.238]
[1762523912446,0.00462784,3239.9,3239.8,0.73836]
[1762523913039,0.50496784,3239.9,3239.8,0.238]
[1762523913746,0.50037,3239.7,3239.6,3.4458]
[1762523914247,0.50037,3239.7,3239.6,3.94619]
[1762523914545,0.50037,3239.7,3239.6,3.4458]
[1762523915436,0.50036,3239.8,3239.6,3.4458]
[1762523915643,0.50037,3239.7,3239.6,3.4458]
[1762523916150,0.74177,3239.7,3239.6,3.2078]
[1762523916743,0.50043,3239.4,3239.2,3.21242784]
[1762523917243,0.50043,3239.3,3239.2,3.45042784]
[1762523917553,0.50042,3239.5,3239.4,0.238]
[1762523918250,0.50039,3239.6,3239.5,0.1448]
[1762523919049,0.74179,3239.6,3239.5,0.1448]
[1762523920454,0.50039,3239.6,3239.5,0.1448]
[1762523921462,3.2078,3239.8,3239.5,0.1448]
[1762523921649,0.50039,3239.6,3239.5,0.3828]
[1762523922552,0.50038,3239.7,3239.6,0.238]
[1762523922754,0.50038,3239.7,3239.6,3.4458]
[1762523923151,0.50036,3239.8,3239.6,3.70819]
[1762523923354,0.50036,3239.8,3239.7,0.238]
[1762523923960,0.50496784,3239.9,3239.8,0.2349]
[1762523924966,0.00462784,3239.9,3239.8,0.2349]
[1762523925164,0.50496784,3239.9,3239.8,0.2349]
[1762523927062,0.50054,3238.6,3238.5,2.89670066]
[1762523927275,0.74294,3238.6,3238.5,0.14397237]
[1762523928666,0.74294,3238.6,3238.5,0.00387237]
[1762523930563,3.95074,3238.6,3238.5,0.00387237]
[1762523930761,4.65725501,3238.6,3238.5,0.00387237]
[1762523930958,0.50063,3238.1,3237.5,3.3546]
[1762523931163,0.50525784,3238.1,3238.0,0.1468]
[1762523931864,0.50525784,3238.1,3238.0,0.15056692]
[1762523932366,0.74765784,3238.1,3238.0,0.15056692]
[1762523933264,0.74765784,3238.1,3238.0,0.00376692]
[1762523933767,0.74765784,3238.1,3238.0,0.15056692]
[1762523934170,0.00462784,3238.1,3238.0,0.38546692]
[1762523934366,0.00462784,3238.1,3238.0,0.88610692]
[1762523934566,0.50524784,3238.1,3238.0,0.38546692]
[1762523934873,0.00462784,3238.1,3238.0,0.88610692]
[1762523935263,0.50524784,3238.1,3238.0,0.38546692]
[1762523940064,0.74764784,3238.1,3238.0,0.15056692]
[1762523940265,0.74764784,3238.1,3238.0,0.14446692]
[1762523940465,0.00462784,3238.1,3238.0,0.38426692]
[1762523941768,0.74894784,3238.1,3238.0,0.00376692]
[1762523943269,6.07719308,3241.0,3239.0,0.1407]
[1762523943473,0.1405,3241.0,3240.9,3.2078]
[1762523943769,0.1405,3241.5,3240.9,0.65]
[1762523943976,0.2437,3240.9,3239.7,2.20311496]
[1762523944174,0.1405,3239.5,3239.3,0.50043]
[1762523944471,0.1405,3239.5,3239.4,3.2078]
[1762523944769,0.14295651,3239.5,3239.4,3.2078]
[1762523945270,0.38665651,3239.5,3239.4,2.56789726]
[1762523945474,0.38665651,3239.5,3239.4,3.39353716]
[1762523945667,0.2437,3239.2,3237.8,2.20311496]
[1762523945866,0.74416,3239.1,3239.0,0.82602191]
[1762523946176,0.50053,3238.7,3238.0,0.50063]
[1762523946377,0.50053,3238.7,3238.6,3.2078]
[1762523946576,0.74423,3238.7,3238.6,3.2078]
[1762523946777,0.74423,3238.7,3238.6,3.21174554]
[1762523949672,8.74423,3238.7,3238.6,3.21174554]
[1762523949876,0.2437,3238.5,3238.4,3.2078]
[1762523950978,0.2437,3238.5,3238.4,3.2110601]
[1762523953172,0.2437,3238.5,3238.0,3.2078]
[1762523953173,8.2437,3238.5,3238.0,3.2078]
[1762523953372,0.50062,3238.1,3238.0,3.2078]
[1762523954282,0.50062,3238.1,3238.0,3.21027542]
[1762523955382,0.50062,3238.1,3238.0,3.35097542]
[1762523958175,0.50062,3238.1,3238.0,3.76302562]
[1762523959076,0.50062,3238.1,3238.0,3.35097542]
[1762523959482,3.2078,3238.6,3238.1,0.2398]
[1762523959680,0.50057,3238.4,3238.3,0.2398]
[1762523959876,3.2078,3238.6,3238.5,0.2398]
[1762523960079,0.50510784,3239.0,3238.9,0.2398]
[1762523960284,0.00462784,3239.0,3238.9,3.9481]
[1762523960471,2.784e-05,3239.0,3238.9,3.9481]
[1762523960782,0.00245651,3239.5,3239.4,0.2398]
[1762523960981,0.00245651,3239.5,3239.4,3.4476]
[1762523961183,0.50031,3240.1,3240.0,0.3805]
[1762523961376,0.5003,3240.2,3240.1,0.2398]
[1762523961576,0.50028,3240.4,3240.3,0.2398]
[1762523961778,3.66362784,3240.5,3240.4,0.2398]
[1762523961977,0.00462784,3240.5,3240.4,3.4476]
[1762523962177,0.00759513,3240.5,3240.4,3.45043489]
[1762523965478,0.50784513,3240.5,3240.4,3.45043489]
[1762523966186,0.00759513,3240.5,3240.4,3.45043489]
[1762523967687,0.50784513,3240.5,3240.4,3.45043489]
[1762523968284,0.00759513,3240.5,3240.4,3.45043489]
[1762523968677,0.50784513,3240.5,3240.4,3.45043489]
[1762523970089,0.00759513,3240.5,3240.4,3.45043489]
[1762523970292,0.50784513,3240.5,3240.4,3.45043489]
[1762523971190,0.00759513,3240.5,3240.4,3.45043489]
[1762523972302,0.50784513,3240.5,3240.4,3.45043489]
[1762523973292,0.00759513,3240.5,3240.4,3.45043489]
[1762523973797,0.00759513,3240.5,3240.4,3.95069489]
[1762523974600,0.50017,3241.1,3241.0,1.0195]
[1762523974895,0.50017,3241.1,3241.0,4.2273]
[1762523975288,3.70785,3241.8,3241.7,0.6257]
[1762523975493,0.50005,3241.8,3241.7,0.6257]
[1762523975791,0.5028802,3241.8,3241.7,0.6257]
[1762523979907,0.50009,3241.5,3241.4,3.21242784]
[1762523980106,1.15599,3241.5,3241.4,3.21242784]
[1762523981298,1.52799,3241.5,3241.4,3.21242784]
[1762523981499,1.15599,3241.5,3241.4,3.21242784]
[1762523985702,1.51779,3241.5,3241.4,3.21242784]
[1762523986100,0.50023,3240.6,3240.5,1.0253]
[1762523987909,0.3618,3241.5,3240.7,0.6315]
[1762523988210,0.5002,3240.8,3240.7,0.6315]
[1762523988396,0.50022,3240.7,3240.6,3.2078]
[1762523989200,1.10182,3240.7,3240.6,3.2078]
[1762523989706,1.10185,3240.5,3240.4,0.00283489]
[1762523990003,9.466,3241.0,3240.5,0.3785]
[1762523990204,3.2078,3241.1,3240.9,0.6315]
[1762523990511,0.50017,3241.0,3240.9,0.6315]
[1762523990808,9.7476,3241.5,3241.0,0.3785]
[1762523991112,0.50015,3241.2,3241.0,0.3785]
[1762523991302,0.50015,3241.2,3241.1,0.6315]
[1762523991610,6.178,3241.5,3241.4,0.6315]
[1762523991807,0.50009,3241.5,3241.4,0.6315]
[1762523993607,0.0028302,3241.8,3241.7,0.6315]
[1762523994105,0.5028802,3241.8,3241.7,0.6315]
[1762523994306,0.5028802,3241.8,3241.7,1.72998348]
[1762523995110,0.0028302,3241.8,3241.7,1.72998348]
[1762523995408,0.5028802,3241.8,3241.7,1.72998348]
[1762523996197,0.5028802,3241.8,3241.7,1.09848348]
[1762523996509,0.50008,3241.6,3241.5,5.8644098]
[1762523997602,0.50008,3241.6,3241.5,5.2329098]
[1762523997806,0.50008,3241.6,3241.5,5.8644098]
[1762523998508,0.50008,3241.6,3241.5,4.2178]
[1762523999409,0.50008,3241.6,3241.5,5.31795749]
[1762523999911,1.10168,3241.6,3241.5,1.10015749]
[1762524000110,1.10168,3241.6,3241.1,3.2078]
[1762524000111,0.50009,3241.5,3241.4,1.10015749]
[1762524000408,0.50009,3241.5,3241.4,1.66745749]
[1762524000600,1.11361,3241.4,3241.3,1.10015749]
[1762524000805,1.11364,3241.2,3241.1,4.30795749]
[1762524001305,1.11364,3241.2,3241.1,3.2078]
[1762524002203,1.11369,3240.9,3240.8,1.6466098]
[1762524002403,1.47495,3240.5,3240.4,0.00283489]
[1762524002604,0.50039,3239.6,3239.5,0.9247]
[1762524002813,9.456,3240.5,3240.0,0.9247]
[1762524003112,0.50023,3240.6,3240.5,0.9247]
[1762524003503,3.70803,3240.6,3240.5,0.0028095]
[1762524003708,4.32153,3240.6,3240.5,0.0028095]
[1762524004109,3.70803,3240.6,3240.5,0.0028095]
[1762524004310,4.32153,3240.6,3240.5,0.0028095]
[1762524005415,1.11373,3240.6,3240.5,0.0028095]
[1762524006416,4.32153,3240.6,3240.5,0.0028095]
[1762524006816,0.50031,3240.1,3240.0,0.82559072]
[1762524007015,1.11381,3240.1,3240.0,0.82559072]
[1762524007717,1.11381,3240.1,3240.0,0.82868338]
[1762524008219,1.11381,3240.1,3240.0,0.00309266]
[1762524010415,0.50028,3240.3,3240.0,0.92779266]
[1762524010616,0.5003,3240.2,3240.1,0.5673]
[1762524010814,9.95725,3240.5,3240.4,0.5673]
[1762524011019,0.50025,3240.5,3240.4,0.5673]
[1762524011920,3.2078,3240.6,3240.5,0.9247]
[1762524012725,3.70803,3240.6,3240.5,0.9247]
[1762524012919,0.50023,3240.6,3240.5,0.9247]
[1762524013117,9.95122,3240.7,3240.6,0.5673]
[1762524013421,9.451,3240.7,3240.6,0.5673]
[1762524013622,9.451,3240.7,3240.6,4.60069072]
[1762524013823,9.451,3240.7,3240.6,3.7751]
[1762524014118,0.00462784,3240.9,3240.8,0.5673]
[1762524014319,0.50481784,3240.9,3240.8,1.3908333]
[1762524016420,0.50481784,3240.9,3240.8,0.5673]
[1762524018827,0.50022,3240.7,3240.6,3.7751]
[1762524019326,0.50481784,3240.9,3240.8,0.5673]
[1762524020625,0.50014,3241.3,3240.9,0.50018]
[1762524020830,0.50013,3241.3,3241.2,0.5673]
[1762524021729,0.50016,3241.1,3241.0,4.38873526]
[1762524022025,0.6135,3240.6,3240.5,0.82353526]
[1762524022222,3.2078,3240.9,3240.1,4.03133526]
[1762524022829,3.2078,3240.9,3240.1,4.59863526]
[1762524022830,0.5003,3240.2,3240.1,4.59863526]
[1762524024634,3.2078,3240.9,3240.1,4.59863526]
[1762524025023,0.5003,3240.2,3240.1,4.59863526]
[1762524025226,0.5003,3240.2,3240.1,4.60031579]
[1762524025427,0.5003,3240.2,3240.1,3.7751]
[1762524026530,1.1138,3240.2,3240.1,3.2078]
[1762524026836,1.1138,3240.2,3240.1,4.03318471]
[1762524027832,1.1138,3240.2,3240.1,3.2078]
[1762524028133,0.5003,3240.2,3240.1,3.7751]
[1762524028334,0.5003,3240.2,3240.1,4.60048471]
[1762524028935,0.50028,3240.3,3240.2,0.5673]
[1762524029126,0.50026,3240.5,3240.4,0.5933]
[1762524029331,3.70799,3240.9,3240.8,0.5933]
[1762524029524,0.50023,3240.6,3240.5,0.3359]
[1762524029731,0.50023,3240.6,3240.5,0.9292]
[1762524030335,3.70799,3240.9,3240.8,0.5933]
[1762524030828,0.50019,3240.9,3240.8,0.5933]
[1762524031539,0.50019,3240.9,3240.8,1.41915631]
[1762524031726,3.2078,3241.3,3240.9,0.5933]
[1762524032037,0.50016,3241.1,3241.0,0.9292]
[1762524032233,0.5832,3241.0,3240.8,0.82622642]
[1762524032432,3.2078,3241.3,3241.0,0.3359]
[1762524032832,0.50016,3241.1,3241.0,0.9292]
[1762524033639,0.50016,3241.1,3241.0,1.75542642]
[1762524034835,0.50016,3241.1,3241.0,1.75582834]
[1762524035040,1.08336,3241.1,3241.0,0.82662834]
[1762524035240,1.08336,3241.1,3241.0,1.16252834]
[1762524035641,1.08336,3241.1,3241.0,1.75582834]
[1762524035843,1.08336,3241.1,3241.0,0.82662834]
[1762524036043,1.08337,3241.0,3240.9,0.82662834]
[1762524036633,0.50019,3240.9,3240.8,0.82662834]
[1762524036838,3.2078,3241.3,3240.9,0.82663942]
[1762524037042,0.50013,3241.3,3241.2,0.5933]
[1762524037239,8.927,3241.4,3241.3,0.5933]
[1762524037437,3.2078,3241.7,3241.5,0.5933]
[1762524037633,3.569,3242.5,3241.5,1.4293]
[1762524038038,0.5028802,3241.8,3241.5,2.57791914]
[1762524038339,0.50470784,3241.6,3241.5,2.03008094]
[1762524038739,1.0833,3241.5,3241.4,1.10088094]
[1762524038939,1.08333,3241.3,3241.2,0.82600423]
[1762524039250,0.00462784,3241.6,3241.0,0.3359]
[1762524039435,0.50016,3241.1,3241.0,1.75520423]
[1762524039648,0.50017,3241.0,3240.9,3.2078]
[1762524039838,1.08337,3241.0,3240.9,3.2078]
[1762524040835,0.3031,3241.5,3241.0,0.3375]
[1762524041042,0.00462784,3241.6,3241.1,0.82681588]
[1762524041240,0.50014,3241.2,3241.1,1.39351588]
[1762524041551,0.50014,3241.3,3241.2,0.5667]
[1762524041845,0.50016,3241.1,3241.0,0.3375]
[1762524042741,0.00462784,3241.6,3241.0,0.9042]
[1762524042947,0.50014,3241.3,3241.2,0.82703822]
[1762524043246,1.08004,3241.3,3241.2,0.82703822]
[1762524043546,0.5001,3241.5,3241.2,0.82703822]
[1762524043744,0.50013,3241.3,3241.2,1.39373822]
[1762524043943,0.00462784,3241.6,3241.4,0.5667]
[1762524043944,0.5001,3241.5,3241.4,0.5667]
[1762524044147,0.00462784,3241.6,3241.4,0.5667]
[1762524044148,0.00462784,3241.6,3241.5,0.9042]
[1762524044450,0.00462784,3241.6,3241.5,4.112]
[1762524044748,0.00462784,3241.6,3241.5,5.21288094]
[1762524045448,0.50470784,3241.6,3241.5,5.21370012]
[1762524045642,0.00462784,3241.6,3241.5,4.112]
[1762524046138,0.50470784,3241.6,3241.5,5.2129741]
[1762524046849,0.00462784,3241.6,3241.5,5.2129741]
[1762524047152,0.50470784,3241.6,3241.5,5.2129741]
[1762524047550,0.00462784,3241.6,3241.5,5.2129741]
[1762524047948,0.00462784,3241.6,3241.5,5.7130741]
[1762524048143,0.00462784,3241.6,3241.5,4.6121]
[1762524048948,0.00462784,3241.6,3241.5,14.26081914]
[1762524049440,2.784e-05,3241.6,3241.5,12.6121]
[1762524050051,0.49993,3242.6,3242.5,0.8592]
[1762524050852,9.444,3243.3,3242.8,0.5464]
[1762524051048,9.444,3243.3,3242.8,3.75806095]
[1762524051049,0.49988,3242.9,3242.8,3.75806095]
[1762524051553,0.49988,3242.9,3242.8,0.55026095]
[1762524052652,1.05098,3242.9,3242.8,0.00386095]
[1762524053148,9.44681488,3243.3,3242.8,0.55026095]
[1762524053350,9.44681488,3243.3,3243.0,0.3128]
[1762524053544,1.05095,3243.1,3243.0,0.3128]
[1762524053751,1.05098,3242.9,3242.8,3.21166095]
[1762524053949,1.05098,3242.9,3242.8,0.00386095]
[1762524054356,0.49985,3243.1,3243.0,0.3128]
[1762524055052,9.44681488,3243.3,3242.8,3.75806095]
[1762524055053,0.49988,3242.9,3242.8,3.75806095]
[1762524059458,0.49987,3243.0,3242.9,0.5464]
[1762524060656,1.03918,3242.9,3242.8,3.21166095]
[1762524060857,0.5393,3242.8,3242.3,0.8240605]
[1762524061053,0.50002,3242.0,3241.9,3.2078]
[1762524061358,0.3119,3242.5,3241.9,3.2078]
[1762524061561,0.5,3242.1,3242.0,0.3277]
[1762524061751,0.5,3242.1,3242.0,0.33013053]
[1762524061948,1.0393,3242.1,3242.0,0.00243053]
[1762524062460,13.6861,3242.1,3242.0,0.00243053]
[1762524062859,13.1468,3242.1,3242.0,0.00243053]
[1762524063054,13.6861,3242.1,3242.0,0.00243053]
[1762524064651,1.03941,3241.4,3241.3,0.8240605]
[1762524064861,1.03944,3241.2,3241.1,4.0318605]
[1762524065056,9.439,3241.4,3241.3,0.5439]
[1762524065361,0.50468784,3241.7,3241.6,0.5439]
[1762524065758,0.50468784,3241.7,3241.6,0.54784674]
[1762524066156,1.04398784,3241.7,3241.6,0.00394674]
[1762524066355,0.50468784,3241.7,3241.6,0.00394674]
[1762524066655,1.04398784,3241.7,3241.6,0.00394674]
[1762524067965,0.00462784,3241.7,3241.6,0.54784674]
[1762524068165,0.00462784,3241.7,3241.6,1.87100484]
[1762524068351,0.00462784,3241.7,3241.6,2.14667407]
[1762524068751,0.49998,3242.3,3242.0,0.3277]
[1762524068957,0.49998,3242.3,3242.2,3.7517]
[1762524069554,0.5,3242.1,3242.0,1.15105874]